Cogmind - Beta 11.1 @@@ ROGUE MODE // 2022.05.22 @ 19:08:28 Player: Candesce Result: Self-destructed Performance ------------- Evolutions (3) 1500 Regions Visited (10) 2000 Robots Destroyed (141) 705 Value Destroyed (4752) 4752 Prototype IDs (50) 1000 Alien Tech Used (0) 0 Bonus (547) 547 TOTAL SCORE: 10504 Bonus ------- High Alert Combat Kills 90 Follower Combat Kills 157 Aligned with FarCom 300 Cogmind --------- Core Integrity 442/700 Matter 249/300 Energy 119/150 System Corruption 0% Temperature Critical (517) Movement Walking (126) Location -7/Lower Caves Parts ------- > --- POWER (1) -------- Micro Nuclear Core > --- PROPULSION (4) --- Aluminum Leg Improved Titanium Leg Improved Titanium Leg > --- UTILITY (6) ------ Large Storage Unit Advanced Targeting Computer Hacking Suite > --- WEAPON (2) ------- Beamcaster Wave Gun > --- INVENTORY (15) --- Light Angular Momentum Engine Advanced Power Amplifier Machine Analyzer Precision Energy Filter Medium Reflective Plating Improved Powered Armor Graphene Brace Improved Force Field Hacking Suite Component Analysis Suite Advanced Beam Rifle Beamcaster Improved Heavy Laser Makeshift Hammer Peak State ------------ > --- POWER ------------ Micro Nuclear Core > --- PROPULSION ------- Carbon-fiber Leg Improved Titanium Leg Improved Titanium Leg Improved Titanium Leg > --- UTILITY ---------- Coolant Injector Large Storage Unit Advanced Targeting Computer Improved Medium Armor Plating Hardlight Generator Hacking Suite > --- WEAPON ----------- Improved Heavy Laser Wave Gun > --- INVENTORY -------- Light Angular Momentum Engine Machine Analyzer Improved Propulsion Shielding Layered Light Armor Plating Medium Reactive Plating Graphene Brace Hacking Suite Component Analysis Suite System Restoration Module Advanced Beam Rifle Beamcaster Beamcaster Heavy Rocket Launcher Remote Datajack Flail [Rating: 55] Favorites ----------- Power Heavy Ion Engine Engine Heavy Ion Engine Power Core Micro Nuclear Core Propulsion Improved Titanium Leg Treads Armored Treads Leg Improved Titanium Leg Wheel Wheel Utility Large Storage Unit Device Improved Heat Sink Storage Large Storage Unit Processor Advanced Targeting Computer Hackware Hacking Suite Protection Improved Medium Armor Plating Weapon Improved Heavy Laser Energy Gun Improved Heavy Laser Ballistic Gun Enhanced Autogun Launcher Grenade Launcher Special Weapon Remote Datajack Impact Weapon Flail Slashing Weapon Scythe Special Melee Weapon Datajack Build | -11 -10 -10 -9 -9 -9 -8 -8 -7 -7 -7 ------- Run | Scr Mat Min Mat Min Exi Min Mat Fac Low Low Slots Evolved 6 | . . . 2 . . . 2 2 . . Power . | . . . . . . . . . . . Propulsion 2 | . . . 1 . . . 1 . . . Utility 4 | . . . 1 . . . 1 2 . . Weapon . | . . . . . . . . . . . Parts Attached 193 | 7 15 15 18 6 2 3 68 32 13 14 Power 13 | 1 2 2 2 1 . . 3 2 . . Engine 12 | 1 2 2 2 1 . . 3 1 . . Core 1 | . . . . . . . . 1 . . Reactor . | . . . . . . . . . . . Propulsion 37 | 2 5 6 6 . . . 12 4 1 1 Treads 2 | . . . . . . . 2 . . . Leg 33 | . 5 6 6 . . . 10 4 1 1 Wheel 2 | 2 . . . . . . . . . . Hover . | . . . . . . . . . . . Flight . | . . . . . . . . . . . Utility 44 | 1 4 3 5 1 . 2 9 11 4 4 Device 18 | . . 1 4 1 . 1 3 4 3 1 Storage 4 | 1 2 . . . . . 1 . . . Processor 2 | . . . . . . . 1 1 . . Hackware 5 | . . . . . . . 1 4 . . Protection 15 | . 2 2 1 . . 1 3 2 1 3 Artifact . | . . . . . . . . . . . Weapon 99 | 3 4 4 5 4 2 1 44 15 8 9 Energy Gun 42 | . 2 2 . . . . 20 8 5 5 Energy Cannon . | . . . . . . . . . . . Ballistic Gun 16 | 3 1 . 3 2 1 1 5 . . . Ballistic Cannon . | . . . . . . . . . . . Launcher 19 | . 1 2 2 . 1 . 6 1 3 3 Special Weapon 2 | . . . . . . . 2 . . . Impact Weapon 5 | . . . . . . . . 4 . 1 Slashing Weapon 13 | . . . . . . . 11 2 . . Piercing Weapon . | . . . . . . . . . . . Special Melee Weapon 2 | . . . . 2 . . . . . . Unidentified Prototypes 4 | . . . 1 . . . 3 . . . Parts Lost 20 | . 3 . 2 . . . 6 1 . 8 Power 4 | . 1 . 1 . . . 2 . . . Propulsion 4 | . 1 . . . . . 1 . . 2 Utility 8 | . . . . . . . 2 1 . 5 Weapon 4 | . 1 . 1 . . . 1 . . 1 Highest Loss Streak 5 | . 2 . 1 . . . 2 1 . 5 To Critical Strikes . | . . . . . . . . . . . Average Slot Usage (%) 99 | . 99 100 99 100 92 100 98 99 100 98 Engine 7 | . 14 14 10 11 11 11 8 6 . . Core 1 | . . . . . . . . . 7 7 Leg 30 | . 26 28 33 33 33 33 35 29 30 28 Device 6 | . . 1 14 17 22 11 1 5 15 8 Storage 10 | . 22 14 11 11 11 11 9 7 7 7 Processor 5 | . . . . . . . 8 11 7 7 Hackware 6 | . . . . . . . 9 13 7 7 Protection 7 | . 5 12 7 4 . 11 8 6 6 13 Energy Gun 13 | . 6 27 5 . . . 14 13 14 14 Ballistic Gun 5 | . 21 . 15 17 4 21 2 . . . Naked Turns . | . . . . . . . . . . . Heaviest Build 63 | 14 38 38 41 35 35 41 41 51 51 63 Greatest Support 80 | 20 20 25 39 36 36 36 80 75 55 65 Greatest Overweight (x) 1 | 1 1 1 1 . . 1 1 . . 1 Average Overweight (x) . | . . 1 . . . 1 . . . . Largest Inventory Capacity 15 | 8 15 15 15 15 15 15 15 15 15 15 Average Capacity 14 | 7 10 15 15 15 15 15 15 15 15 15 Most Carried 15 | 4 15 15 15 15 15 15 15 15 15 15 Average Carried 13 | 2 7 14 14 15 14 15 14 14 14 14 Final Capacity 15 | 8 15 15 15 15 15 15 15 15 15 15 Final Carried 15 | 4 15 15 15 15 15 15 14 15 15 14 Class Distribution -------------------- 61% | Mutant 25% | Scavenger-Mutant 13% | Hacker-Mutant Dominant Class ---------------- Mutant | -10/Materials Mutant | -10/Mines Scavenger-Mutant | -9/Materials Mutant | -9/Mines Mutant | -9/Exiles Mutant | -8/Mines Mutant | -8/Materials Hacker-Mutant | -7/Factory Scavenger-Mutant | -7/Lower Caves Scavenger-Mutant | -7/Lower Caves Resources | -11 -10 -10 -9 -9 -9 -8 -8 -7 -7 -7 ----------- Run | Scr Mat Min Mat Min Exi Min Mat Fac Low Low Matter Collected 3533 | 288 583 226 264 15 200 119 1061 320 239 218 Remotely . | . . . . . . . . . . . Salvage Created 4986 | 94 702 180 362 . . 84 1337 764 711 752 Parts 270 | 9 42 16 24 . . . 76 41 35 27 Haulers Intercepted 9 | . 2 . 1 . . . 5 . . 1 Recyclers Shooed 2 | . 1 . . . . . 1 . . . Parts Field Recycled . | . . . . . . . . . . . Retrieved Matter . | . . . . . . . . . . . Parts Self-Destructed 51 | . . . . . . . . . 29 22 Prevented 1 | . . . . . . . . . . 1 Kills | -11 -10 -10 -9 -9 -9 -8 -8 -7 -7 -7 ------- Run | Scr Mat Min Mat Min Exi Min Mat Fac Low Low Combat Hostiles Destroyed 115 | . 15 9 7 . . 3 26 12 24 19 Guns 70 | . 13 6 5 . . 1 12 12 14 7 AOE 43 | . 2 3 2 . . 2 12 . 10 12 Classes Destroyed 17 | 2 4 1 2 . . . 6 1 . 1 Worker 2 | . . . . . . . 2 . . . Tunneler 3 | 2 . 1 . . . . . . . . Hauler 9 | . 2 . 1 . . . 5 . . 1 Recycler 6 | 1 1 . . . . . 2 2 . . Minesweeper 1 | . . . . . . . . . . 1 Operator 6 | . 2 . 2 . . . 1 1 . . Watcher 2 | . . . . . . . 1 1 . . Swarmer 29 | . 5 3 . . . . 4 . 13 4 Grunt 53 | . 10 3 3 . . 3 11 5 9 9 Brawler 4 | . . . 1 . . . 1 . . 2 Duelist 1 | . . . . . . . 1 . . . Protector 1 | . . . . . . . 1 . . . Sentry 10 | . . . 3 . . . 5 1 1 . Hunter 5 | . . . . . . . 2 2 1 . Programmer 3 | . . . . . . . . 3 . . Heavy 1 | . . . . . . . 1 . . . Assembled 3 | . . 3 . . . . . . . . Thug 3 | . . . . . . . . 1 . 2 Savage 1 | . . . . . . . . . . 1 Butcher 1 | . . . . . . . . . . 1 Best Kill Streak 7 | 3 5 3 3 . . 3 6 4 7 6 Combat Bots Only 7 | . 5 3 3 . . 3 5 2 7 6 Max Kills in Single Turn 4 | 1 2 1 1 . . 1 4 1 4 3 Gunslinging 1 | . . . . . . . . . 1 . Exploded 4 | . 2 1 1 . . 1 4 . 4 3 Melee . | . . . . . . . . . . . Uniques/NPCs Destroyed . | . . . . . . . . . . . Combat | -11 -10 -10 -9 -9 -9 -8 -8 -7 -7 -7 -------- Run | Scr Mat Min Mat Min Exi Min Mat Fac Low Low Damage Taken 5493 | . 598 352 330 . . 258 1857 479 524 1095 Core 815 | . 126 22 . . . 62 347 36 119 103 Absorbed by Shields 228 | . . . . . . . 28 108 88 4 Redirected to Shielding 104 | . . . . . . . . . . 104 Regen/Repaired (Parts) 256 | . . . 43 . . . . 213 . . Core Remaining (%) 65 | 100 . 40 . . . 84 36 . . . Volleys Fired 338 | 3 50 24 36 . . 5 107 41 30 42 Largest 2 | 2 2 2 2 . . 2 2 2 2 2 Hottest 156 | 40 130 130 130 . . 50 122 120 140 156 Shots Fired 621 | 6 99 38 69 . . 6 194 82 53 74 Gun 565 | 6 98 28 66 . . 2 173 82 47 63 Cannon . | . . . . . . . . . . . Launcher 54 | . 1 10 3 . . 4 19 . 6 11 Special 2 | . . . . . . . 2 . . . Kinetic 192 | 6 94 . 48 . . 2 42 . . . Thermal 373 | . 4 28 18 . . . 131 82 47 63 Explosive 54 | . 1 10 3 . . 4 19 . 6 11 Electromagnetic . | . . . . . . . . . . . Robot Hit Streak 14 | 3 8 5 10 . . 4 10 14 13 9 Robot Miss Streak 7 | 1 7 3 5 . . . 4 2 3 3 Penetration Max . | . . . . . . . . . . . Secondary Targets 6 | . . 1 . . . . 1 2 1 1 Max Gunslinging Chain 1 | . . 1 . . . . 1 1 1 1 Shots Hit Robots 396 | 5 54 17 44 1 8 3 127 60 35 42 Core Hits 241 | 4 34 15 16 . . 8 62 28 37 37 Critical Kills . | . . . . . . . . . . . Critical Parts Destroyed . | . . . . . . . . . . . Critical Strikes 15 | . . 1 . . . . 8 3 1 2 Burn 15 | . . 1 . . . . 8 3 1 2 Melee Attacks 41 | . . . . 1 8 . 17 15 . . Impact 6 | . . . . . . . . 6 . . Slashing 26 | . . . . . . . 17 9 . . Piercing . | . . . . . . . . . . . Sneak Attacks 9 | . . . . 1 8 . . . . . Combat Hostiles . | . . . . . . . . . . . Follow-up Attacks . | . . . . . . . . . . . Damage Inflicted 11964 | 60 745 541 995 . . 400 3681 1435 1938 2169 Guns 7183 | 60 666 267 688 . . 14 2273 1435 768 1012 Cannons . | . . . . . . . . . . . Explosions 4734 | . 79 257 307 . . 380 1384 . 1170 1157 Melee . | . . . . . . . . . . . Ramming 47 | . . 17 . . . 6 24 . . . Kinetic 1633 | 60 614 . 500 . . 14 445 . . . Thermal 5550 | . 52 267 188 . . . 1828 1435 768 1012 Explosive 4734 | . 79 257 307 . . 380 1384 . 1170 1157 Electromagnetic . | . . . . . . . . . . . Impact . | . . . . . . . . . . . Slashing . | . . . . . . . . . . . Piercing . | . . . . . . . . . . . Highest Corruption 5 | . . . 5 5 5 5 4 1 1 . Average Corruption 3 | . . . 5 5 5 5 3 1 1 . Corruption Purged 1 | . . . . . . . . . 1 . Corruption Blocked . | . . . . . . . . . . . Effects 35 | . . . 3 2 8 6 13 . 3 . Message Errors 7 | . . . 1 . 2 1 2 . 1 . Matter Fused 11 | . . . . 2 2 3 3 . 1 . Heat Flow Errors 4 | . . . . . 2 1 1 . . . Energy Discharges 5 | . . . 2 . 1 . 2 . . . Parts Rejected 1 | . . . . . . . 1 . . . Data Loss (minor) 5 | . . . . . 1 . 3 . 1 . Data Loss (major) 1 | . . . . . . 1 . . . . Misfires 1 | . . . . . . . 1 . . . Overload Shots . | . . . . . . . . . . . Overflow Damage 142 | . . 4 . . . . . . 93 45 Projectiles . | . . . . . . . . . . . Explosions 142 | . . 4 . . . . . . 93 45 Melee . | . . . . . . . . . . . Knockbacks 1 | . . . . . . . 1 . . . Impact 1 | . . . . . . . 1 . . . Kinetic . | . . . . . . . . . . . Secondary . | . . . . . . . . . . . Self-Inflicted Damage 530 | . . 147 . . . 80 124 . 9 170 Shots 24 | . . 8 . . . 4 6 . 1 5 Rammed . | . . . . . . . . . . . Targets Rammed 4 | . . 2 . . . 1 1 . . . Kicked 4 | . . 2 . . . 1 1 . . . Crushed . | . . . . . . . . . . . Highest Temperature 535 | . 156 375 171 . 159 150 360 244 138 535 Average Temperature 98 | . 33 166 71 . 71 81 103 48 45 123 Received Heat Transfer 1776 | . 216 108 99 . . 99 567 148 172 367 Effects 9 | . . 3 . . . . 4 . . 2 Energy Bleed 2 | . . 1 . . . . . . . 1 Interference 6 | . . 2 . . . . 4 . . . Damage (major) 1 | . . . . . . . . . . 1 Siege Activations . | . . . . . . . . . . . Robots Corrupted . | . . . . . . . . . . . Combat Hostiles . | . . . . . . . . . . . Parts Fried . | . . . . . . . . . . . Impact Corruptions . | . . . . . . . . . . . Robots Melted 2 | . . . . . . . 2 . . . Combat Hostiles 2 | . . . . . . . 2 . . . Parts Melted 24 | . . . 2 . . . 9 8 3 2 Heat Transferred 10730 | . 111 666 444 . . . 3996 2479 1295 1739 Parts Sabotaged . | . . . . . . . . . . . Parts Stolen . | . . . . . . . . . . . Parts Stripped . | . . . . . . . . . . . Power Chain Reactions . | . . . . . . . . . . . Missiles Intercepted . | . . . . . . . . . . . Alert | -11 -10 -10 -9 -9 -9 -8 -8 -7 -7 -7 ------- Run | Scr Mat Min Mat Min Exi Min Mat Fac Low Low Peak Influence 519 | 15 275 228 320 46 . 89 519 392 . . Initial 116 | . 9 25 29 46 . . 34 116 . . Average 134 | 3 110 69 143 46 . 86 243 94 . . Maximum Alert Level 2 | . 1 1 1 . . . 2 1 . . Low Security (%) 74 | 100 97 90 74 100 . 100 31 87 . . Level 1 21 | . 2 9 25 . . . 55 12 . . Level 2 3 | . . . . . . . 13 . . . Level 3 . | . . . . . . . . . . . Level 4 . | . . . . . . . . . . . Level 5 . | . . . . . . . . . . . High Security . | . . . . . . . . . . . Max Security . | . . . . . . . . . . . Squads Dispatched 22 | . 5 . 4 . . . 4 9 . . Investigation 9 | . 3 . 2 . . . . 4 . . Extermination 3 | . . . . . . . . 3 . . Reinforcement 9 | . 2 . 2 . . . 3 2 . . Assault 1 | . . . . . . . 1 . . . Garrison . | . . . . . . . . . . . Intercept . | . . . . . . . . . . . Searches Triggered . | . . . . . . . . . . . Construction Impeded . | . . . . . . . . . . . Haulers Reinforced . | . . . . . . . . . . . Active Scanning Responses . | . . . . . . . . . . . Cargo Convoy Interrupts . | . . . . . . . . . . . Stealth | -11 -10 -10 -9 -9 -9 -8 -8 -7 -7 -7 --------- Run | Scr Mat Min Mat Min Exi Min Mat Fac Low Low Distress Signals 12 | . 4 . 1 . . . 4 3 . . Communications Jammed . | . . . . . . . . . . . Distress Signals . | . . . . . . . . . . . Times Spotted 168 | . 29 13 10 . . 3 45 22 24 22 Peak Tracking Total 7 | . 5 3 3 . . 3 7 4 7 6 Tactical Retreats 5 | . 1 2 . . . . 1 . 1 . Traps | -11 -10 -10 -9 -9 -9 -8 -8 -7 -7 -7 ------- Run | Scr Mat Min Mat Min Exi Min Mat Fac Low Low Traps Triggered 4 | . 1 . . . . . 2 1 . . Indirectly . | . . . . . . . . . . . Trap Hack Attempts . | . . . . . . . . . . . Triggered . | . . . . . . . . . . . Disarmed . | . . . . . . . . . . . Reprogrammed . | . . . . . . . . . . . Reused . | . . . . . . . . . . . Traps Extracted . | . . . . . . . . . . . Installed . | . . . . . . . . . . . Triggered 4 | . . . . . . . . . 1 3 Machines | -11 -10 -10 -9 -9 -9 -8 -8 -7 -7 -7 ---------- Run | Scr Mat Min Mat Min Exi Min Mat Fac Low Low Machines Disabled 5 | . . . . . . . 2 1 2 . Max in Single Turn 1 | . . . . . . . 1 1 1 . Garrison Access 2 | . . . . . . . 1 1 . . Machines Sabotaged . | . . . . . . . . . . . Garrisons Compromised . | . . . . . . . . . . . Overloaded Fab Kills . | . . . . . . . . . . . Hacking | -11 -10 -10 -9 -9 -9 -8 -8 -7 -7 -7 --------- Run | Scr Mat Min Mat Min Exi Min Mat Fac Low Low Machines Accessed 40 | . 7 2 3 . 1 . 12 15 . . Terminals 21 | . 5 2 1 . . . 7 6 . . Fabricators 2 | . . . . . . . . 2 . . Repair Stations 5 | . . . 1 . . . 1 3 . . Recycling Units 5 | . 2 . 1 . . . 1 1 . . Scanalyzers 4 | . . . . . . . 2 2 . . Garrison Access 2 | . . . . . . . 1 1 . . Total Hacks 108 | . 20 9 9 . 1 . 31 38 . . Successful 64 | . 9 5 6 . 1 . 19 24 . . Failed 43 | . 10 4 3 . . . 12 14 . . Catastrophic 4 | . 1 . 1 . . . 2 . . . Database Lockouts 1 | . 1 . . . . . . . . . Manual 38 | . 11 5 3 . 1 . 9 9 . . Terminals 57 | . 17 9 2 . . . 13 16 . . Fabricators 5 | . . . . . . . . 5 . . Repair Stations 14 | . . . 5 . . . 2 7 . . Recycling Units 9 | . 3 . 2 . . . 1 3 . . Scanalyzers 19 | . . . . . . . 13 6 . . Garrison Access 3 | . . . . . . . 2 1 . . Terminal Hacks 22 | . 6 5 1 . 1 . 4 5 . . Part Schematic 5 | . 1 . . . . . . 4 . . Robot Analysis 4 | . 2 2 . . . . . . . . Prototype ID Bank 2 | . 1 . . . . . 1 . . . Branch Access Points 2 | . . . 1 . . . . 1 . . Repair Station Index 1 | . . . . . . . 1 . . . Unreport Threat 4 | . 1 1 . . . . 2 . . . Hauler Manifests 1 | . 1 . . . . . . . . . Zone Layout 2 | . . 2 . . . . . . . . EX-Prototype ID Bank 1 | . . . . . 1 . . . . . Fabricator Hacks 4 | . . . . . . . . 4 . . Network Status 1 | . . . . . . . . 1 . . Load Schematic 1 | . . . . . . . . 1 . . Build 2 | . . . . . . . . 2 . . Repair Station Hacks 9 | . . . 3 . . . 1 5 . . Scan Component 6 | . . . 2 . . . 1 3 . . Repair 3 | . . . 1 . . . . 2 . . Recycling Unit Hacks 4 | . 1 . 1 . . . 1 1 . . Report Inventory 4 | . 1 . 1 . . . 1 1 . . Scanalyzer 15 | . . . . . . . 10 5 . . Insert Component 7 | . . . . . . . 5 2 . . Analyze 8 | . . . . . . . 5 3 . . Garrison Access Hacks 1 | . . . . . . . . 1 . . Seal Access 1 | . . . . . . . . 1 . . Unauthorized Hacks 9 | . 2 . 1 . . . 3 3 . . Terminals 5 | . . . . . . . 3 2 . . Assimilate 1 | . . . . . . . 1 . . . Botnet 3 | . . . . . . . 2 1 . . Operators 1 | . . . . . . . . 1 . . Fabricators 1 | . . . . . . . . 1 . . Download 1 | . . . . . . . . 1 . . Repair Stations . | . . . . . . . . . . . Recycling Units 3 | . 2 . 1 . . . . . . . Tunnel 3 | . 2 . 1 . . . . . . . Scanalyzers . | . . . . . . . . . . . Garrison Access . | . . . . . . . . . . . Data Cores Recovered . | . . . . . . . . . . . Used . | . . . . . . . . . . . Hacking Detections 33 | . 5 2 3 . . . 11 12 . . Full Trace Events 4 | . . . . . . . 1 3 . . Feedback Events . | . . . . . . . . . . . Feedback Blocked . | . . . . . . . . . . . Robot Schematics Acquired . | . . . . . . . . . . . Robots Built . | . . . . . . . . . . . Authchips . | . . . . . . . . . . . Time . | . . . . . . . . . . . Total Robot Build Rating . | . . . . . . . . . . . Part Schematics Acquired 12 | . 1 . . . . . 4 7 . . Parts Built 2 | . . . . . . . . 2 . . Authchips 1 | . . . . . . . . 1 . . Time 225 | . . . . . . . . 225 . . Total Part Build Rating 8 | . . . . . . . . 8 . . Parts Repaired 3 | . . . 1 . . . . 2 . . Time 70 | . . . 26 . . . . 44 . . Parts Recycled . | . . . . . . . . . . . Recycled Matter . | . . . . . . . . . . . Retrieved Matter . | . . . . . . . . . . . Retrieved Components . | . . . . . . . . . . . Parts Scanalyzed 6 | . . . . . . . 4 2 . . Part Schematics Acquired 6 | . . . . . . . 4 2 . . Parts Damaged . | . . . . . . . . . . . Bothacking | -11 -10 -10 -9 -9 -9 -8 -8 -7 -7 -7 ------------ Run | Scr Mat Min Mat Min Exi Min Mat Fac Low Low Used RIF Installer . | . . . . . . . . . . . Robots Hacked 8 | . . . . 1 5 . 2 . . . Non-combat 5 | . . . . . 3 . 2 . . . Combat 3 | . . . . 1 2 . . . . . Robot Hacks Applied 10 | . . . . 1 7 . 2 . . . parse_system 8 | . . . . 1 7 . . . . . no_distress 2 | . . . . . . . 2 . . . Relay Couplers Released 4 | . . . . . . . 4 . . . Machine Destruction 4 | . . . . . . . 4 . . . Fabnet Peak Effective % . | . . . . . . . . . . . Robots Rewired . | . . . . . . . . . . . Allies Hacked . | . . . . . . . . . . . Hacks Repelled . | . . . . . . . . . . . Allies | -11 -10 -10 -9 -9 -9 -8 -8 -7 -7 -7 -------- Run | Scr Mat Min Mat Min Exi Min Mat Fac Low Low Total Allies 7 | . . 2 . 1 . . 1 3 . . Largest Group 3 | . . 2 1 1 1 . 1 3 1 . Highest-Rated Group 93 | . . 49 18 31 31 . 10 93 31 . Highest-Rated Ally 31 | . . 31 18 31 31 . 10 31 31 . Total Orders . | . . . . . . . . . . . Ally Attacks 34 | . . 12 . . . . . 17 5 . Total Damage 467 | . . 125 . . . . . 322 20 . Kills 5 | . . 3 . . . . . 2 . . Allies Corrupted . | . . . . . . . . . . . Allies Melted . | . . . . . . . . . . . Intel | -11 -10 -10 -9 -9 -9 -8 -8 -7 -7 -7 ------- Run | Scr Mat Min Mat Min Exi Min Mat Fac Low Low Robot Analysis Total 4 | . 2 2 . . . . . . . . Derelict Logs Recovered 4 | . . 2 . . . . . . . 2 Drone Launches . | . . . . . . . . . . . Drone Recoveries . | . . . . . . . . . . . Exploration | -11 -10 -10 -9 -9 -9 -8 -8 -7 -7 -7 ------------- Run | Scr Mat Min Mat Min Exi Min Mat Fac Low Low Turns Passed 10922 | 78 1524 1184 500 98 288 281 2160 2286 1533 990 Spaces Moved 6135 | 70 735 552 193 60 275 142 1105 1263 1108 632 Core 8 | 8 . . . . . . . . . . Treads 25 | . . . . . . . 25 . . . Legs 5976 | . 671 552 193 60 275 142 1080 1263 1108 632 Wheels 126 | 62 64 . . . . . . . . . Hover . | . . . . . . . . . . . Flight . | . . . . . . . . . . . Fastest Speed 50 | 50 80 190 90 90 90 180 90 126 126 125 Average Speed 137 | 78 181 190 159 90 90 180 117 126 126 133 Slowest Speed 250 | 100 190 190 190 90 90 180 250 130 126 196 Overloaded Moves . | . . . . . . . . . . . Propulsion Burnouts . | . . . . . . . . . . . Robots Hopped . | . . . . . . . . . . . Cave-ins Triggered . | . . . . . . . . . . . Exploration Rate (%) 55 | 4 97 94 27 9 65 42 78 30 98 67 Regions Visited 10 Branch Regions 6 Pre-discovered Areas 5 | . 2 2 1 . . . . . . . Known Exits Taken 2 | . . . 1 . . . . 1 . . Unknown Exits Taken 8 | 1 1 1 . 1 1 1 1 . 1 . Scrap Searched 10 | . . 1 . 1 . 1 . . 4 3 Spaces Dug 230 | . 2 30 . . . 18 38 5 41 96 Terrain Destroyed 449 | . 2 58 29 . . 25 120 5 48 162 Melee 21 | . . . . . . . 16 5 . . Projectile 6 | . . . . . . . 2 . . 4 AOE 422 | . 2 58 29 . . 25 102 . 48 158 Terrain Rammed . | . . . . . . . . . . . Walls Destroyed . | . . . . . . . . . . . Machines Disabled . | . . . . . . . . . . . Actions | -11 -10 -10 -9 -9 -9 -8 -8 -7 -7 -7 --------- Run | Scr Mat Min Mat Min Exi Min Mat Fac Low Low Total 7961 | 83 834 649 335 101 312 160 1753 1840 1188 706 Wait 1093 | 1 10 44 72 34 23 10 407 454 30 8 Move 6125 | 69 734 551 192 59 274 141 1104 1262 1107 632 Hop . | . . . . . . . . . . . Pick Up 76 | 3 15 3 6 . 2 . 19 19 3 6 Fast Attach 31 | 6 4 . 5 . . . 10 3 2 1 Attach 19 | . 3 . 2 . 1 . 6 4 . 3 Detach 2 | . . . . . 1 . 1 . . . Swap 145 | 1 8 15 12 6 1 3 53 25 11 10 Drop 87 | . 10 10 10 1 2 . 28 17 5 4 Fire 338 | 3 50 24 36 . . 5 107 41 30 42 Melee 41 | . . . . 1 8 . 17 15 . . Ram . | . . . . . . . . . . . Kick 4 | . . 2 . . . 1 1 . . . Crush . | . . . . . . . . . . . Escape Stasis . | . . . . . . . . . . . Rewire . | . . . . . . . . . . . Trap . | . . . . . . . . . . . Miscellaneous . | . . . . . . . . . . . Route ------- -11/Scrapyard -10/Materials (discovered 4 exits: *Mat x3 / *Min) -10/Mines (discovered 2 exits: *Mat x2) -9/Materials (discovered 3 exits: *Mat / *Min x2) -9/Mines -9/Exiles -8/Mines -8/Materials (discovered 2 exits: *Fac x2) -7/Factory (discovered 6 exits: [*Fac x2] / Sto x2 / *Low x2) -7/Lower Caves -7/Lower Caves (discovered 1 exit: [*Fac]) History --------- Turn | Location | Event 7 | -11/Scrapyard | Discovered new exit (range 15) 79 | -11/Scrapyard | Entered Materials 314 | -10/Materials | Build established: Mutant 503 | -10/Materials | Core integrity fell below 50% 547 | -10/Materials | Discovered new exit (range 6) 686 | -10/Materials | Discovered new exit (range 7) 737 | -10/Materials | Discovered new exit (range 14) 828 | -10/Materials | Discovered new exit (range 13) 1520 | -10/Materials | Central database locked down 1603 | -10/Materials | Entered Mines 1821 | -10/Mines | Excavation squad dispatched 1821 | -10/Mines | A large section of the Mines collapsed 1948 | -10/Mines | Discovered new exit (range 10) 2276 | -10/Mines | Found a damaged Exp. Sensor Array with a note attached 2282 | -10/Mines | Found Prototype Device 2292 | -10/Mines | Learned location of Storage (-7) 2309 | -10/Mines | Discovered new exit (range 4) 2523 | -10/Mines | Found a hidden stash of uninstalled traps 2787 | -10/Mines | Entered Materials 2787 | -9/Materials | Accompanied by 1 ally 2787 | -9/Materials | Evolved 2 slots: Propulsion x1, Utility x1 3082 | -9/Materials | Build established: Scavenger-Mutant 3229 | -9/Materials | Repaired Grenade Launcher 3238 | -9/Materials | Discovered new exit (range 8) 3239 | -9/Materials | Identified exit to Mines 3278 | -9/Materials | Discovered new exit (range 14) 3287 | -9/Materials | Entered Mines 3293 | -9/Mines | YI-UF0 nonchalantly dropped a Grenade Launcher on the ground 3327 | -9/Mines | Deemed a non-threat by the Exiles lab entrance 3327 | -9/Mines | Discovered new exit (range 5) 3363 | -9/Mines | Received a Mining Laser from a helpful Derelict 3382 | -9/Mines | Build established: Mutant 3385 | -9/Mines | Entered Exiles 3385 | -9/Exiles | Accompanied by 1 ally 3413 | -9/Exiles | Met 8R-AWN 3429 | -9/Exiles | Met EX-HEX 3466 | -9/Exiles | Met EX-BIN 3524 | -9/Exiles | Aligned with FarCom system 3525 | -9/Exiles | Given EX-Vault access code 3545 | -9/Exiles | Opened EX-Vault 3554 | -9/Exiles | Found Skeleton Box 3574 | -9/Exiles | Warned to stay clear of 0b10 Research branches 3599 | -9/Exiles | Met EX-DEC 3662 | -9/Exiles | Discovered new exit (range 14) 3673 | -9/Exiles | Left Exiles lab with Skeleton Box 3673 | -9/Exiles | Entered Mines 3866 | -8/Mines | Discovered new exit (range 12) 3954 | -8/Mines | Entered Materials 3954 | -8/Materials | Evolved 2 slots: Propulsion x1, Utility x1 5176 | -8/Materials | Core integrity fell below 50% 5546 | -8/Materials | Discovered new exit (range 11) 6073 | -8/Materials | Discovered new exit (range 16) 6114 | -8/Materials | Entered Factory 6114 | -7/Factory | Evolved 2 slots: Utility x2 6115 | -7/Factory | Identified exit to Storage 6178 | -7/Factory | Discovered new exit (range 6) 6276 | -7/Factory | Repaired Imp. Titanium Leg 6325 | -7/Factory | Fabricated Imp. Heavy Laser (x1) 6465 | -7/Factory | Fabricated Hacking Suite? 6824 | -7/Factory | Build established: Hacker-Mutant 6845 | -7/Factory | Discovered new exit (range 15) 6885 | -7/Factory | Identified exit to Lower Caves 7558 | -7/Factory | Discovered new exit (range 15) 7620 | -7/Factory | Repaired Imp. Titanium Leg 8294 | -7/Factory | Allied Derelicts emerged from ambush trap array 8296 | -7/Factory | P-60 Hacker assimilated allied A2-HCR(g) 8300 | -7/Factory | P-60 Hacker assimilated allied 1M-UMO(g) 8400 | -7/Factory | Entered Lower Caves 8400 | -7/Lower Caves | Accompanied by 1 ally 8610 | -7/Lower Caves | Build established: Scavenger-Mutant 8828 | -7/Lower Caves | Discovered new exit (range 15) 9727 | -7/Lower Caves | Attracted the attention of an 0b10 base 9769 | -7/Lower Caves | Destroyed 7 combat bots 9933 | -7/Lower Caves | Entered another Lower Caves area 9964 | -7/Lower Caves | Discovered new exit (range 10) 10088 | -7/Lower Caves | Lost 3 parts (1n2u) 10133 | -7/Lower Caves | Build established: Mutant 10283 | -7/Lower Caves | Learned location of 1 exit from Factory 10302 | -7/Lower Caves | Found Imp. Powered Armor 10511 | -7/Lower Caves | Learned 4 Factory zone layouts 10534 | -7/Lower Caves | Build established: Scavenger-Mutant 10910 | -7/Lower Caves | Attacked by a faux Warlord 10923 | -7/Lower Caves | Self-destructed Last Messages --------------- 10899_ WX-249(b) destroyed. 10902_ The unstable cave ceiling collapses. 10904_ Critical hit (Burn: +37). 10906_ 6H-6AN(g) destroyed. 10906_ OK-FBE(g) destroyed. 10907_ Hvy. Rocket Launcher destroyed. 10907_ Med. Reactive Plating destroyed. 10909_ GJ-E0Z(M): "I've never seen anything like that down here. It must be an Unaware spy!" 10909_ UB-3E7(l) suffers critical hit (Burn). 10910_ GJ-E0Z(M): "You are tresspassing on Warlord territory, MY territory! Guards, destroy it!" 10910_ The unstable cave ceiling collapses. 10911_ Coolant Injector destroyed. 10914_ UB-3E7(l) destroyed. 10920_ The unstable cave ceiling collapses. 10920_ Imp. Propulsion Shielding destroyed. 10920_ Carbon-fiber Leg destroyed. 10922_ Overheating: Adv. Targeting Computer damaged (-9). 10923_ Overheating: Energy bleed (-21). Map ----- +----------------------------------------------------+ | ??????????## ##??????????##??????????????## | | ???????????# #???????????????????#####??# | | ???????????# #?????????????????### ##?# # | | ???????????# #???????????????### #?## # | | ???????????# #?###???????????# # ##??## | | ???????????# ### ##??????????# ## #???# | | ???????????# ##?????????# ### #???## | | ??????????# ##????????## # ####????# | | ??????????# #### #?????????## # #??????# | | ??????????# ##??## ##?????????# ##?????# | | ??????????## ?????## ##????????## ## #??#### | | ???????????# #??##### #######???# #??# # | | ????? ? ???# ???# #???## #### # | | ???? ????# ???# # #???# ## # | | ???? ? ????# ???# ### " #???## # ## | | ???# ????# ??# ## """"" #????# ##? | | ??? ????? ??# """" "" #????# #? | | ??? #????? ?# #????# # ##? | | ??? ###### ## " " #????# #?? | | ??? #???? """""" #???## # #?? | | ### ? #??????# " "" #?### # #?? | | # ##?# #??????## #?# ##? | | # #?# #??????## #?# ## ## | | ### #??????# ## ##?# # ## | | ### ##???????# # # ##### #### | | ## ##??????# # @ ###### ### #??### # | | ## ##?????## % ##???# ### #????## | | ##?????# ##???# ### #?????## | | #???# #??## ## #?????# | | ## #### #?????## | | ## [M g% ##??????# | | ?# ## %% / #???????? | | ?####### ## = #???????? | | ???????# ### # ### ###### #??????? | | ???????## ##? ##?## ##????## ##??????? | | ????????###???# # #????######??????####???????? | | ??????????????#######????????????????????????????? | | ?????????????????????????????????????????????????? | | ?????????????????????????????????????????????????? | | ?????????????????????????????????????????????????? | | ?????????????????????????????????????????????????? | | ?????????????????????????????????????????????????? | | ?????????????????????????????????????????????????? | | ?????????????????????????????????????????????????? | | ?????????????????????????????????????????????????? | | ?????????????????????????????????????????????????? | | ?????????????????????????????????????????????????? | | ?????????????????????????????????????????????????? | | ?????????????????????????????????????????????????? | | ?????????????????????????????????????????????????? | +----------------------------------------------------+ Best States ------------- Heat Dissipation 48 Coolant Potential 65 Energy Generation 15 Energy Capacity 280 Matter Stores 300 Matter Capacity 300 Sight Range 16 Terrain Scan Density 10 Armor Coverage 375 Resistance: KI 30 Propulsion Shielding 66 Evasion (%) 57 Targeting Accuracy 8 Recoil Reduction 2 Offensive Hacking 30 Authchip Count 3 Item Schematics ----------------- Hcp. Storage Unit | -10/Materials | Hacked Graphene Brace | -8/Materials | Scanalyzed Hacking Suite | -8/Materials | Scanalyzed Enh. Autogun | -8/Materials | Scanalyzed Hvy. Ion Engine | -8/Materials | Scanalyzed Imp. Cooling System | -7/Factory | Hacked Hvy. Rocket Launcher | -7/Factory | Scanalyzed Tri-rail Accelerator | -7/Factory | Hacked Imp. Medium Armor Plating | -7/Factory | Scanalyzed Arm. Huge Wheel | -7/Factory | Hacked Lyr. Heavy Armor Plating | -7/Factory | Hacked Adv. Sensor Array | -7/Factory | Downloaded Robot Schematics ------------------ None Fabricated ------------ Imp. Heavy Laser | x1 | -7/Factory | Preloaded Hacking Suite | x1 | -7/Factory | Authchip Alien Tech Used ----------------- None Achievements -------------- None Challenges ------------ None Game ------ Seed DecoderExplosiveWings Manual? 0 Play Time 02:24:11 Cumulative 37.7 hours Start 2022.05.21 @ 13:12:16 End 2022.05.22 @ 19:08:28 Sessions 15 Manual Loads 0 Difficulty Rogue Special Mode None Game No. 109 Rogue 109 Adventurer 0 Explorer 0 Win Type - Total 1 Types 0/0/0/1/0/0/0/0/0 Lore% 53 Gallery% 59 Achievement% 44 Wizard Run 0 Options --------- ASCII 0 Keyboard 0 Movement Numpad Keybinds 0 Fullscreen 1 Font 14/SmallcapsGlow Map View 84x54 Tactical HUD 1 Map Filters NONE Filters NONE Steam 1 RUN: 8211d4d7-373d-40ac-8633-b9b316d78aed